bitfinex-derivatives/quotes_BTCF0:USTF0_20241227
["timestamp","ask_amount","ask_price","bid_price","bid_amount"]
[1735305657743,0.001,96467.0,96466.0,0.86276964]
[1735305658552,0.001,96467.0,96466.0,0.91498541]
[1735305659147,0.001,96467.0,96466.0,0.91498282]
[1735305660437,0.001,96467.0,96466.0,0.901896]
[1735305660643,0.0444,96477.0,96467.0,0.051895]
[1735305660843,0.0444,96477.0,96468.0,0.08582582]
[1735305661151,0.0444,96477.0,96469.0,0.03393082]
[1735305661352,0.0444,96477.0,96476.0,0.85]
[1735305661548,0.0444,96477.0,96476.0,0.86305031]
[1735305661849,0.0454,96477.0,96476.0,0.86305031]
[1735305662645,0.0454,96477.0,96476.0,0.85]
[1735305662851,0.0454,96477.0,96476.0,0.851]
[1735305663448,0.0444,96477.0,96476.0,0.851]
[1735305663643,0.0474,96477.0,96476.0,0.851]
[1735305665650,0.0474,96477.0,96476.0,0.86402743]
[1735305666843,0.0474,96477.0,96476.0,0.86402637]
[1735305667247,0.0474,96477.0,96476.0,0.86401927]
[1735305669042,0.0474,96477.0,96476.0,0.851]
[1735305669360,0.0474,96477.0,96476.0,0.86401984]
[1735305669745,0.0474,96477.0,96476.0,0.86402135]
[1735305671449,0.2323286,96477.0,96476.0,0.86402135]
[1735305671954,0.2323286,96477.0,96476.0,0.88484766]
[1735305672553,0.0474,96477.0,96476.0,0.88484766]
[1735305673445,0.0474,96477.0,96476.0,0.86402135]
[1735305673648,0.0474,96477.0,96476.0,0.88480718]
[1735305673849,0.0474,96477.0,96476.0,0.86402135]
[1735305676262,0.0474,96477.0,96476.0,0.86386804]
[1735305676461,0.003,96477.0,96476.0,0.86386804]
[1735305676767,0.003,96477.0,96476.0,0.88445592]
[1735305676963,0.1,96500.0,96479.0,0.2072167]
[1735305677151,0.1,96500.0,96498.0,0.051879]
[1735305677459,0.24731555,96507.0,96505.0,0.051875]
[1735305677654,0.27810999,96514.0,96506.0,0.8955]
[1735305677956,0.04332495,96514.0,96512.0,0.051871]
[1735305678156,0.6473633,96515.0,96507.0,0.14497401]
[1735305678157,0.30862443,96515.0,96513.0,0.03101318]
[1735305678355,0.24747783,96532.0,96514.0,0.04387314]
[1735305678550,0.24679783,96532.0,96523.0,0.051865]
[1735305678750,0.24679783,96532.0,96524.0,0.01285996]
[1735305678960,0.24679783,96532.0,96525.0,0.01285996]
[1735305679156,0.044,96533.0,96507.0,0.0844]
[1735305679350,0.044,96533.0,96498.0,0.27369448]
[1735305679351,0.051867,96520.0,96508.0,0.03328032]
[1735305679663,0.051863,96529.0,96510.0,0.10360835]
[1735305679859,0.051863,96529.0,96520.0,0.10360835]
[1735305680052,0.051863,96529.0,96525.0,0.001]
[1735305680354,0.051863,96528.0,96525.0,0.001]
[1735305681661,0.051859,96536.0,96525.0,0.002]
[1735305681851,0.051859,96536.0,96525.0,0.001]
[1735305682363,0.0449,96548.0,96525.0,0.001]
[1735305682665,0.001,96528.0,96525.0,0.001]
[1735305682863,0.001,96528.0,96525.0,0.01006048]
[1735305683154,0.001,96528.0,96527.0,0.85]
[1735305683355,0.051856,96540.0,96527.0,0.85]
[1735305684269,0.05378257,96548.0,96530.0,0.15546935]
[1735305684449,0.051855,96543.0,96530.0,0.051861]
[1735305687155,0.05378257,96548.0,96528.0,0.0422]
[1735305687356,0.051855,96543.0,96528.0,0.0422]
[1735305687559,0.05378257,96548.0,96532.0,0.05186]
[1735305687752,0.051853,96546.0,96532.0,0.05186]
[1735305687958,0.05378257,96548.0,96532.0,0.05186]
[1735305688861,0.051854,96545.0,96528.0,0.0422]
[1735305689063,0.051854,96544.0,96528.0,0.0422]
[1735305689559,0.05378257,96548.0,96528.0,0.0422]
[1735305689761,0.10360835,96540.0,96527.0,0.85]
[1735305689961,0.051863,96529.0,96527.0,0.85]
[1735305690155,0.0429,96528.0,96527.0,0.85]
[1735305691061,0.051863,96529.0,96527.0,0.85]
[1735305691256,0.0428,96528.0,96527.0,0.85]
[1735305691967,0.0428,96528.0,96527.0,0.851]
[1735305692149,0.0428,96528.0,96527.0,0.001]
[1735305692653,0.0428,96528.0,96508.0,0.18669841]
[1735305692860,0.10360835,96520.0,96508.0,0.00892707]
[1735305693055,0.0434,96519.0,96509.0,0.78]
[1735305693755,0.051869,96517.0,96509.0,0.78]
[1735305694862,0.051859,96535.0,96509.0,0.78]
[1735305695067,0.051859,96535.0,96518.0,0.051868]
[1735305696361,0.051859,96535.0,96520.0,0.051867]
[1735305697053,0.0446,96538.0,96520.0,0.051867]
[1735305697257,0.05186,96533.0,96520.0,0.051867]
[1735305697667,0.0425,96539.0,96520.0,0.10360835]
[1735305697861,0.0425,96539.0,96529.0,0.15547035]
[1735305698060,0.0425,96539.0,96529.0,0.051862]
[1735305698663,0.0425,96539.0,96538.0,0.78]
[1735305699273,0.00155476,96540.0,96538.0,0.78]
[1735305699959,0.00155476,96540.0,96538.0,0.831857]
[1735305700356,0.00155476,96540.0,96539.0,0.0419]
[1735305700961,0.00155476,96540.0,96539.0,0.8219]
[1735305701656,0.00155476,96540.0,96539.0,0.8345574]
[1735305703668,0.00155476,96540.0,96539.0,0.83455661]
[1735305703862,0.00155476,96540.0,96539.0,0.85480651]
[1735305704760,0.00155476,96540.0,96539.0,0.85580651]
[1735305705355,0.00155476,96540.0,96539.0,0.85583826]
[1735305705560,0.00155476,96540.0,96539.0,0.85483826]
[1735305705761,0.00155476,96540.0,96539.0,0.85583826]
[1735305705966,0.00155476,96540.0,96539.0,0.86503277]
[1735305706168,0.00155476,96540.0,96539.0,0.86505762]
[1735305706374,0.00155476,96540.0,96539.0,0.86405762]
[1735305706569,0.00155476,96540.0,96539.0,0.86505762]
[1735305707069,0.051852,96549.0,96540.0,0.051856]
[1735305707271,0.051852,96549.0,96541.0,0.03296311]
[1735305707470,0.051852,96549.0,96542.0,0.03296311]
[1735305707657,0.051852,96549.0,96548.0,0.78]
[1735305707858,0.051852,96549.0,96548.0,0.81296311]
[1735305708468,0.051852,96549.0,96548.0,1.06094814]
[1735305708873,0.00903878,96555.0,96548.0,1.06094814]
[1735305709070,0.051848,96556.0,96549.0,0.01267812]
[1735305709373,0.051848,96556.0,96550.0,0.01267812]
[1735305709558,0.051848,96556.0,96554.0,0.1860107]
[1735305709761,0.051848,96556.0,96555.0,0.01267812]
[1735305710565,0.05183674,96559.0,96555.0,0.01267812]
[1735305710767,0.05183674,96559.0,96556.0,0.01267812]
[1735305710963,0.05183674,96559.0,96557.0,0.01267812]
[1735305711268,0.05183674,96559.0,96558.0,0.01267812]
[1735305711662,0.05183674,96559.0,96555.0,0.001]
[1735305711863,0.05183674,96559.0,96558.0,0.78]
[1735305712264,0.0441,96561.0,96558.0,0.79275981]
[1735305712462,0.0417,96569.0,96564.0,0.051843]
[1735305712668,0.0417,96569.0,96565.0,0.051843]
[1735305713461,0.0417,96569.0,96566.0,0.03316691]
[1735305713667,0.0417,96569.0,96567.0,0.03316691]
[1735305713863,0.0417,96569.0,96565.0,0.051843]
[1735305713864,0.0417,96569.0,96568.0,0.0127565]
[1735305714374,0.0417,96569.0,96565.0,0.051843]
[1735305714575,0.0417,96569.0,96562.0,0.31067197]
[1735305714779,0.0417,96569.0,96567.0,0.24787324]
[1735305716072,0.0417,96569.0,96565.0,0.001]
[1735305716279,0.0417,96569.0,96566.0,0.18581907]
[1735305717564,0.0417,96569.0,96567.0,0.001]
[1735305717969,0.051842,96567.0,96561.0,0.24787324]
[1735305718374,0.351842,96567.0,96561.0,0.18437324]
[1735305718676,0.051851,96550.0,96549.0,0.78]
[1735305719774,0.052851,96550.0,96549.0,0.78]
[1735305720286,0.0417,96569.0,96549.0,0.78]
[1735305720469,0.001,96550.0,96549.0,0.78]
[1735305721084,0.05185,96551.0,96549.0,0.78]
[1735305721282,0.001,96550.0,96549.0,0.78]
[1735305722471,0.05185,96551.0,96549.0,0.78]
[1735305722775,0.001,96550.0,96549.0,0.78]
[1735305723083,0.05185,96551.0,96549.0,0.78]
[1735305723378,0.001,96550.0,96549.0,0.78]
[1735305723769,0.05285,96551.0,96549.0,0.78]
[1735305724280,0.051858,96537.0,96536.0,0.00155376]
[1735305724465,0.0389,96550.0,96516.0,0.0829]
[1735305724466,0.10360835,96546.0,96516.0,0.0829]
[1735305724671,0.051854,96545.0,96537.0,0.78]
[1735305724871,0.051857,96538.0,96537.0,0.78]
[1735305726075,0.052857,96538.0,96537.0,0.78]
[1735305728180,0.051869,96517.0,96516.0,0.0416]
[1735305728683,0.051869,96517.0,96516.0,0.8216]
[1735305730381,0.051869,96517.0,96516.0,0.8246]
[1735305730585,0.051869,96517.0,96516.0,0.8286]
[1735305732985,0.00155447,96539.0,96516.0,0.8286]
[1735305733186,0.00155447,96539.0,96520.0,0.10360835]
[1735305733187,0.051861,96531.0,96520.0,0.10360835]
[1735305733378,0.051861,96531.0,96521.0,0.0779]
[1735305734083,0.051861,96531.0,96530.0,0.78]
[1735305735286,0.051858,96537.0,96530.0,0.78]
[1735305735685,0.00155447,96539.0,96530.0,0.78]
[1735305735985,0.05185,96551.0,96530.0,0.78]
[1735305736185,0.24684715,96568.0,96531.0,0.01287097]
[1735305736382,0.051849,96555.0,96537.0,0.051858]
[1735305736881,0.10360835,96550.0,96537.0,0.051858]
[1735305737182,0.051849,96555.0,96541.0,0.051855]
[1735305737390,0.051849,96555.0,96542.0,0.0813]
[1735305738786,0.051852,96549.0,96542.0,0.0853]
[1735305738980,0.051854,96545.0,96542.0,0.0853]
[1735305739991,0.051854,96545.0,96542.0,0.0863]
[1735305740385,0.051854,96545.0,96543.0,0.78]
[1735305748595,0.06129933,96545.0,96543.0,0.78]
[1735305749201,0.051871,96513.0,96506.0,0.31067197]
[1735305749391,0.051871,96513.0,96512.0,0.01446703]
[1735305749990,0.051871,96513.0,96512.0,0.00155413]
[1735305750194,0.051871,96513.0,96512.0,0.63155413]
[1735305750392,0.06130517,96513.0,96512.0,0.64155413]
[1735305754304,0.051871,96513.0,96512.0,0.64155413]
[1735305758906,0.051871,96513.0,96512.0,0.64]
[1735305761402,0.051885,96486.0,96482.0,0.1224]
[1735305761608,0.051887,96484.0,96483.0,0.01289188]
[1735305762205,0.051887,96482.0,96481.0,0.00155463]
[1735305762599,0.051887,96482.0,96469.0,0.1224]
[1735305762600,0.051891,96476.0,96469.0,0.1224]
[1735305762799,0.051891,96476.0,96475.0,0.27]
[1735305765015,0.053891,96476.0,96475.0,0.27]
[1735305765802,0.009,96476.0,96457.0,0.0417]
[1735305766107,0.051895,96468.0,96457.0,0.0417]
[1735305766301,0.051895,96468.0,96467.0,0.27]
[1735305768003,0.052895,96468.0,96467.0,0.27]
[1735305769010,0.057895,96468.0,96467.0,0.27]
[1735305770219,0.056895,96468.0,96467.0,0.27]
[1735305771113,0.055895,96468.0,96467.0,0.27]
[1735305772018,0.051895,96468.0,96467.0,0.27]
[1735305772218,0.056895,96468.0,96467.0,0.27]
[1735305772521,0.057895,96468.0,96467.0,0.27]
[1735305772818,0.056895,96468.0,96467.0,0.27]
[1735305773721,0.052895,96468.0,96467.0,0.27]
[1735305774018,0.057895,96468.0,96467.0,0.27]
[1735305774212,0.056895,96468.0,96467.0,0.27]
[1735305775020,0.0519,96458.0,96457.0,0.0417]
[1735305775515,0.0519,96458.0,96457.0,0.3117]
[1735305776120,0.0519,96458.0,96457.0,0.0417]
[1735305776508,0.0529,96458.0,96457.0,0.0417]
[1735305777116,0.051903,96453.0,96452.0,0.27]
[1735305778218,0.051903,96453.0,96452.0,0.272]
[1735305779230,0.051903,96453.0,96452.0,0.273]
[1735305786828,0.10360835,96480.0,96452.0,0.28580049]
[1735305787024,0.10360835,96480.0,96460.0,0.10360835]
[1735305787025,0.00947013,96480.0,96460.0,0.10360835]
[1735305787324,0.051884,96489.0,96472.0,0.051893]
[1735305787531,0.10360835,96490.0,96475.0,0.27]
[1735305787717,0.051885,96486.0,96475.0,0.27]
[1735305787918,0.10360835,96490.0,96475.0,0.27]
[1735305788315,0.051887,96483.0,96475.0,0.27]
[1735305788925,0.051887,96483.0,96476.0,0.01277061]
[1735305789229,0.002,96480.0,96477.0,0.01277061]
[1735305789418,0.002,96480.0,96478.0,0.01277061]
[1735305789621,0.002,96480.0,96475.0,0.27]
[1735305789622,0.002,96480.0,96479.0,0.01278426]
[1735305790219,0.057887,96483.0,96479.0,0.01278426]
[1735305790420,0.057887,96483.0,96480.0,0.01278426]
[1735305790632,0.057887,96483.0,96481.0,0.01278349]
[1735305790821,0.057887,96483.0,96482.0,0.01278349]
[1735305792127,0.051887,96483.0,96482.0,0.01277627]
[1735305792728,0.055887,96483.0,96482.0,0.01277627]
[1735305793117,0.056887,96483.0,96482.0,0.01277627]
[1735305794027,0.057887,96483.0,96482.0,0.01277627]
[1735305796532,0.052887,96483.0,96477.0,0.24738445]
[1735305796737,0.051888,96482.0,96478.0,0.01276823]
[1735305796925,0.051888,96482.0,96479.0,0.01276823]
[1735305797124,0.051888,96482.0,96480.0,0.01276823]
[1735305797326,0.051888,96482.0,96481.0,0.01276823]
[1735305798433,0.052888,96482.0,96481.0,0.01276823]
[1735305798735,0.052888,96482.0,96481.0,0.01274176]
[1735305799035,0.052888,96482.0,96475.0,0.27]
[1735305799336,0.052888,96482.0,96474.0,0.00957669]
[1735305799337,0.004,96482.0,96481.0,0.051888]
[1735305799532,0.004,96482.0,96481.0,0.06462976]
[1735305799734,0.004,96482.0,96481.0,0.28274176]
[1735305800040,0.006,96482.0,96481.0,0.28274176]
[1735305800337,0.006,96482.0,96481.0,0.29226324]
[1735305800633,0.001,96482.0,96481.0,0.29821407]
[1735305800832,0.051887,96484.0,96481.0,0.30021407]
[1735305801136,0.051887,96484.0,96482.0,0.01269259]
[1735305801326,0.051887,96484.0,96481.0,0.28752148]
[1735305801327,0.04375996,96484.0,96481.0,0.28752148]
[1735305802530,0.004,96482.0,96481.0,0.28152148]
[1735305803031,0.051882,96493.0,96481.0,0.28152148]
[1735305803237,0.001,96484.0,96481.0,0.28152148]
[1735305803427,0.001,96484.0,96481.0,0.27952148]
[1735305803626,0.001,96484.0,96481.0,0.28152148]
[1735305803826,0.001,96482.0,96481.0,0.28152148]
[1735305804236,0.051883,96491.0,96481.0,0.27952148]
[1735305804436,0.051883,96491.0,96481.0,0.28652148]
[1735305804840,0.051883,96490.0,96481.0,0.01652148]
[1735305805337,0.051883,96490.0,96489.0,0.27]
[1735305809142,0.052883,96490.0,96489.0,0.27]
[1735305815647,0.051883,96490.0,96489.0,0.27]
[1735305815836,0.052883,96490.0,96489.0,0.27]
[1735305816242,0.051883,96490.0,96489.0,0.27]
[1735305816537,0.052883,96490.0,96489.0,0.27]
[1735305826450,0.051883,96490.0,96489.0,0.27]
[1735305826652,0.052883,96490.0,96489.0,0.27]
[1735305828655,0.051883,96490.0,96489.0,0.27]
[1735305828845,0.052883,96490.0,96489.0,0.27]
[1735305829853,0.051883,96490.0,96489.0,0.27]
[1735305830058,0.052883,96490.0,96489.0,0.27]
[1735305832651,0.051883,96490.0,96489.0,0.27]
[1735305832949,0.052883,96490.0,96489.0,0.27]
[1735305833252,0.051883,96490.0,96489.0,0.27]
[1735305833454,0.052883,96490.0,96489.0,0.27]
[1735305837147,0.001,96490.0,96489.0,0.27]
[1735305839653,0.24680715,96510.0,96489.0,0.28300946]
[1735305839856,0.24680715,96510.0,96506.0,0.051874]
[1735305840052,0.24680715,96510.0,96507.0,0.13880757]
[1735305840350,0.24680715,96510.0,96507.0,0.40880757]
[1735305840758,0.11360715,96510.0,96507.0,0.40880757]
[1735305841058,0.13555612,96516.0,96515.0,0.05187]
[1735305841249,0.33873887,96530.0,96524.0,0.051865]
[1735305841250,0.30670577,96525.0,96524.0,0.051865]
[1735305841455,0.30618576,96525.0,96524.0,0.06483235]
[1735305841653,0.00052001,96530.0,96524.0,0.33483235]
[1735305841861,0.051861,96531.0,96525.0,0.01296735]
[1735305842047,0.051861,96531.0,96524.0,0.27]
[1735305842048,0.0821,96530.0,96524.0,0.27]
[1735305842365,0.0821,96530.0,96490.0,0.34856]
[1735305842551,0.10360835,96512.0,96503.0,0.01291854]
[1735305842752,0.10360835,96512.0,96504.0,0.01291854]
[1735305843069,0.051871,96513.0,96511.0,0.18621316]
[1735305843359,0.051871,96513.0,96512.0,0.14]
[1735305844651,0.05072677,96519.0,96506.0,0.18621316]
[1735305845160,0.051874,96508.0,96506.0,0.18621316]
[1735305845461,0.051874,96508.0,96501.0,0.18621316]
[1735305845761,0.051874,96508.0,96502.0,0.01286091]
[1735305845959,0.051874,96508.0,96503.0,0.01286091]
[1735305846261,0.051874,96508.0,96506.0,0.002]
[1735305847153,0.051874,96508.0,96506.0,0.003]
[1735305847659,0.051874,96508.0,96506.0,0.002]
[1735305849245,0.051874,96508.0,96500.0,0.14]
[1735305850254,0.051874,96508.0,96498.0,0.051878]
[1735305850463,0.051874,96508.0,96499.0,0.01285855]
[1735305850761,0.051874,96508.0,96507.0,0.14]
[1735305862274,0.00976703,96509.0,96507.0,0.14]
[1735305862477,0.0865,96510.0,96507.0,0.051874]
[1735305862669,0.041,96519.0,96508.0,0.051873]
[1735305863070,0.041,96519.0,96518.0,0.14]
[1735305864362,0.05078373,96519.0,96518.0,0.14]
[1735305864564,0.10265173,96519.0,96518.0,0.14]
[1735305865275,0.10265173,96519.0,96518.0,0.141]
[1735305866174,0.10365173,96519.0,96518.0,0.141]
[1735305866964,0.06265173,96519.0,96518.0,0.141]
[1735305868470,0.001,96519.0,96518.0,0.141]
[1735305882979,0.001,96519.0,96518.0,0.17481756]
[1735305883178,0.001,96519.0,96518.0,0.18511697]
[1735305883377,0.001,96519.0,96518.0,0.17481756]
[1735305883891,0.001,96519.0,96518.0,0.18511402]
[1735305884182,0.001,96519.0,96518.0,0.1618072]
[1735305884375,0.001,96519.0,96518.0,0.1748117]
[1735305884990,0.001,96519.0,96518.0,0.43343586]
[1735305885485,0.0876,96539.0,96518.0,0.42314652]
[1735305885692,0.051862,96531.0,96520.0,0.15506965]
[1735305885881,0.051862,96531.0,96521.0,0.0130045]
[1735305886084,0.0876,96539.0,96528.0,0.14]
[1735305886283,0.0876,96539.0,96529.0,0.10320265]
[1735305886498,0.0448,96539.0,96529.0,0.10320265]
[1735305886796,0.0419,96550.0,96529.0,0.10320265]
[1735305887095,0.051859,96535.0,96529.0,0.10320265]
[1735305887279,0.051854,96545.0,96529.0,0.10320265]
[1735305887485,0.051854,96545.0,96530.0,0.01311736]
[1735305887690,0.00995691,96548.0,96535.0,0.051859]
[1735305887991,0.051854,96545.0,96536.0,0.0411]
[1735305890682,0.051854,96545.0,96537.0,0.01309985]
[1735305890890,0.051854,96545.0,96536.0,0.0411]
[1735305890891,0.051854,96545.0,96538.0,0.01309985]
[1735305891197,0.051854,96545.0,96536.0,0.0411]
[1735305891385,0.051854,96545.0,96537.0,0.01309985]
[1735305891588,0.051854,96545.0,96539.0,0.14]
[1735305892689,0.222,96589.0,96539.0,0.14]
[1735305892690,0.095242,96567.0,96542.0,0.051855]
[1735305892893,0.095242,96567.0,96557.0,0.10320265]
[1735305893196,0.051837,96577.0,96557.0,0.10320265]
[1735305893387,0.051837,96575.0,96558.0,0.094546]
[1735305893582,0.051837,96575.0,96558.0,0.0427]
[1735305893797,0.10320265,96570.0,96550.0,0.051851]
[1735305894290,0.10320265,96580.0,96550.0,0.15505365]
[1735305894889,0.051841,96570.0,96550.0,0.15605365]
[1735305895089,0.0446,96582.0,96567.0,0.051842]
[1735305895287,0.051826,96598.0,96580.0,0.051834]
[1735305895490,0.1295,96596.0,96580.0,0.15503665]
[1735305895693,0.1295,96596.0,96581.0,0.01307682]
[1735305895899,0.1295,96596.0,96582.0,0.01302788]
[1735305896195,0.1295,96596.0,96580.0,0.15503665]
[1735305896399,0.1295,96596.0,96569.0,0.046]
[1735305896400,0.1295,96596.0,96576.0,0.18621148]
[1735305896590,0.181327,96596.0,96576.0,0.18621148]
[1735305897593,0.051828,96593.0,96572.0,0.051839]
[1735305898096,0.051829,96592.0,96576.0,0.005]
[1735305898894,0.051829,96592.0,96577.0,0.14]
[1735305899288,0.051829,96591.0,96577.0,0.14]
[1735305900591,0.10320265,96590.0,96576.0,0.004]
[1735305900789,0.10320265,96590.0,96576.0,0.007]
[1735305900996,0.051832,96586.0,96576.0,0.007]
[1735305901301,0.051832,96586.0,96577.0,0.001]
[1735305901692,0.051832,96586.0,96572.0,0.06170943]
[1735305901902,0.001,96591.0,96576.0,0.001]
[1735305902289,0.001,96586.0,96573.0,0.051838]
[1735305902494,0.001,96586.0,96577.0,0.001]
[1735305903096,0.051833,96584.0,96577.0,0.001]
[1735305903300,0.051834,96582.0,96577.0,0.001]
[1735305903800,0.10320265,96590.0,96577.0,0.001]
[1735305903998,0.051827,96595.0,96578.0,0.051836]
[1735305904202,0.051827,96595.0,96570.0,0.10320265]
[1735305904400,0.10320265,96590.0,96579.0,0.051835]
[1735305905312,0.10320265,96590.0,96563.0,0.051843]
[1735305905496,0.10320265,96590.0,96573.0,0.051838]
[1735305905996,0.10320265,96583.0,96567.0,0.18621148]
[1735305906203,0.10320265,96583.0,96567.0,0.23805248]
[1735305906402,0.10320265,96583.0,96567.0,0.051841]
[1735305907506,0.10320265,96583.0,96568.0,0.14]
[1735305908306,0.051834,96582.0,96568.0,0.14]
[1735305909213,0.051834,96582.0,96568.0,0.141]
[1735305909808,0.051834,96582.0,96570.0,0.05184]
[1735305910509,0.051834,96582.0,96571.0,0.01305404]
[1735305910698,0.10320265,96583.0,96568.0,0.142]
[1735305911102,0.10320265,96583.0,96569.0,0.01305171]
[1735305911299,0.05184,96571.0,96570.0,0.001]
[1735305913203,0.05184,96571.0,96568.0,0.141]
[1735305913402,0.1302,96570.0,96568.0,0.141]
[1735305914015,0.1302,96570.0,96568.0,0.14]
[1735305915006,0.1312,96570.0,96568.0,0.14]
[1735305916501,0.1312,96570.0,96560.0,0.01016057]
[1735305916703,0.1312,96570.0,96561.0,0.01301492]
[1735305916907,0.23440265,96570.0,96569.0,0.14]
[1735305917101,0.23440265,96570.0,96569.0,0.15302291]
[1735305917303,0.23440265,96570.0,96569.0,0.15302422]
[1735305917501,0.1312,96570.0,96569.0,0.15302422]
[1735305917707,0.1302,96570.0,96569.0,0.15302422]
[1735305920099,0.1302,96570.0,96569.0,0.15303175]
[1735305920412,0.1312,96570.0,96569.0,0.15303175]
[1735305923515,0.1312,96570.0,96569.0,0.1530474]
[1735305925619,0.1312,96570.0,96569.0,0.15305369]
[1735305925820,0.1312,96570.0,96569.0,0.14]
[1735305926617,0.1312,96570.0,96569.0,0.15305346]
[1735305927018,0.1312,96570.0,96569.0,0.14]
[1735305928420,0.1312,96570.0,96561.0,0.051845]
[1735305928421,0.4312,96570.0,96517.0,0.01616437]
[1735305928609,0.4312,96570.0,96527.0,0.051863]
[1735305928610,0.05185,96552.0,96527.0,0.051863]
[1735305928810,0.05185,96552.0,96551.0,0.23419727]
[1735305929120,0.05185,96552.0,96517.0,0.0873]
[1735305929121,0.05186,96533.0,96517.0,0.0873]
[1735305929420,0.35185,96552.0,96517.0,0.0873]
[1735305929421,0.10320265,96550.0,96520.0,0.10320265]
[1735305929629,0.10320265,96560.0,96551.0,0.001]
[1735305930312,0.10320265,96560.0,96548.0,0.0427]
[1735305930313,0.18492946,96550.0,96548.0,0.0427]
[1735305931522,0.001,96550.0,96548.0,0.0427]
[1735305932524,0.001,96550.0,96541.0,0.088]
[1735305932915,0.001,96550.0,96548.0,0.001]
[1735305933124,0.051851,96549.0,96548.0,0.001]
[1735305933420,0.001,96550.0,96548.0,0.001]
[1735305933727,0.001,96550.0,96541.0,0.0471]
[1735305933924,0.25732585,96551.0,96541.0,0.0471]
[1735305934123,0.25732585,96551.0,96541.0,0.0491]
[1735305934525,0.25732585,96551.0,96541.0,0.0471]
[1735305934829,0.003,96550.0,96541.0,0.0471]
[1735305935124,0.051855,96543.0,96541.0,0.002]
[1735305935426,0.0448,96542.0,96541.0,0.001]
[1735305936224,0.0448,96542.0,96531.0,0.14]
[1735305936418,0.051861,96532.0,96531.0,0.14]
[1735305937326,0.051862,96531.0,96515.0,0.05625057]
[1735305937522,0.15506465,96530.0,96515.0,0.05625057]
[1735305937825,0.15506465,96530.0,96516.0,0.14]
[1735305938724,0.12316504,96527.0,96516.0,0.14]
[1735305939433,0.12316504,96527.0,96516.0,0.146]
[1735305939828,0.17502804,96528.0,96516.0,0.146]
[1735305940017,0.17502804,96528.0,96516.0,0.14]
[1735305940225,0.12316504,96528.0,96516.0,0.146]
[1735305940419,0.12316504,96528.0,96526.0,0.051864]
[1735305940741,0.12316504,96528.0,96527.0,0.0451]
[1735305941422,0.17502204,96539.0,96527.0,0.1851]
[1735305941631,0.17502204,96539.0,96528.0,0.045]
[1735305942717,0.051857,96539.0,96528.0,0.045]
[1735305943218,0.051857,96539.0,96528.0,0.048]
[1735305943420,0.051858,96538.0,96528.0,0.048]
[1735305944328,0.051858,96538.0,96528.0,0.054]
[1735305945528,0.10320265,96540.0,96528.0,0.054]
[1735305945721,0.05186,96534.0,96528.0,0.054]
[1735305946926,0.05186,96534.0,96528.0,0.048]
[1735305947230,0.05186,96534.0,96528.0,0.054]
[1735305948627,0.12368505,96540.0,96528.0,0.054]
[1735305948820,0.12316504,96539.0,96528.0,0.009]
[1735305949023,0.051861,96531.0,96528.0,0.009]
[1735305949217,0.12316504,96539.0,96528.0,0.009]
[1735305949424,0.051862,96529.0,96528.0,0.009]
[1735305950729,0.051862,96529.0,96528.0,0.015]
[1735305951030,0.051862,96529.0,96528.0,0.003]
[1735305951329,0.051862,96529.0,96528.0,0.009]
[1735305952227,0.051862,96529.0,96476.0,0.37166762]
[1735305952228,0.051874,96507.0,96476.0,0.37166762]
[1735305952430,0.15507665,96507.0,96498.0,0.01283249]
[1735305952617,0.10320265,96507.0,96499.0,0.15283275]
[1735305952821,0.15507565,96510.0,96500.0,0.0128334]
[1735305953021,0.051873,96509.0,96501.0,0.0128334]
[1735305953222,0.051873,96509.0,96499.0,0.14]
[1735305953530,0.051873,96509.0,96500.0,0.01280019]
[1735305953731,0.051873,96509.0,96501.0,0.01280019]
[1735305953934,0.051873,96509.0,96502.0,0.01280019]
[1735305954120,0.10320265,96510.0,96503.0,0.01280019]
[1735305954321,0.051874,96508.0,96504.0,0.01280019]
[1735305954624,0.051874,96508.0,96505.0,0.01280019]
[1735305954824,0.051874,96508.0,96506.0,0.01280019]
[1735305955026,0.051874,96508.0,96499.0,0.14]
[1735305955218,0.051874,96508.0,96500.0,0.01279841]
[1735305955424,0.051874,96508.0,96501.0,0.01279841]
[1735305955625,0.051874,96508.0,96502.0,0.01279841]
[1735305955933,0.051874,96508.0,96503.0,0.01279841]
[1735305956135,0.051874,96508.0,96499.0,0.14]
[1735305956136,0.051874,96508.0,96504.0,0.01279841]
[1735305956327,0.10320265,96510.0,96505.0,0.01280753]
[1735305956524,0.051874,96507.0,96506.0,0.01280753]
[1735305957737,0.054874,96507.0,96506.0,0.01280753]
[1735305959227,0.054874,96507.0,96499.0,0.14]
[1735305959426,0.054874,96507.0,96500.0,0.01283888]
[1735305959639,0.054874,96507.0,96501.0,0.01283888]
[1735305959839,0.054874,96507.0,96499.0,0.14]
[1735305960043,0.003,96507.0,96500.0,0.01284137]
[1735305960235,0.12316483,96513.0,96501.0,0.03338647]
[1735305960534,0.12316483,96513.0,96512.0,0.051871]
[1735305960739,0.12316483,96513.0,96512.0,0.20471938]
[1735305960941,0.15396476,96524.0,96523.0,0.051865]
[1735305961239,0.15396476,96524.0,96523.0,0.06471254]
[1735305961438,0.12326875,96525.0,96523.0,0.06471254]
[1735305961634,0.12326875,96525.0,96524.0,0.15284754]
[1735305962535,0.15396476,96531.0,96524.0,0.15284754]
[1735305962536,0.15396476,96543.0,96535.0,0.051859]
[1735305962736,0.15396476,96543.0,96541.0,0.051855]
[1735305962938,0.15396476,96543.0,96542.0,0.01276906]
[1735305963143,0.15396476,96543.0,96542.0,0.15276906]
[1735305963335,0.18492946,96550.0,96549.0,0.051851]
[1735305963537,0.18492946,96550.0,96549.0,0.06462006]